Cogmind - Beta 14 @@@ ROGUE MODE // 2024.08.13 @ 18:22:37 Player: Repentce Result: Destroyed by Autobeam Turret with Autobeam Performance ------------- Evolutions (0) 0 Regions Visited (2) 400 Robots Destroyed (25) 125 Value Destroyed (467) 467 Prototype IDs (2) 40 Alien Tech Used (0) 0 Bonus (0) 0 TOTAL SCORE: 1032 Bonus ------- None Cogmind --------- Core Integrity 0/250 Matter 300/300 Energy 250/250 System Corruption 1% Temperature Cool (6) Movement Rolling (110) Location -10/Subcaves Parts ------- > --- POWER (1) -------- Ion Engine > --- PROPULSION (2) --- Subdweller Monowheel Subdweller Monowheel > --- UTILITY (2) ------ Targeting Computer > --- WEAPON (2) ------- Subdweller Laser Beamcaster > --- INVENTORY (5) ---- Spiked Treads Light Assault Rifle Battle Rifle Scrap Shield Fragment (48) Scrap Shield Fragment (47) Peak State ------------ > --- POWER ------------ Subdweller Power Source > --- PROPULSION ------- Subdweller Monowheel Subdweller Monowheel > --- UTILITY ---------- Scrap Shield > --- WEAPON ----------- Beamcaster Beam Cannon > --- INVENTORY -------- Ion Engine Spiked Treads Light Assault Rifle Scrap Shield Fragment Scrap Shield Fragment [Rating: 16] Favorites ----------- Power Light Ion Engine Engine Light Ion Engine Propulsion Wheel Treads Spiked Treads Leg Aluminum Leg Wheel Wheel Utility Heat Sink Device Heat Sink Storage Small Matter Pod Processor Targeting Computer Protection Scrap Shield Weapon Beam Cannon Energy Gun EM Pulse Gun Energy Cannon Beam Cannon Ballistic Gun Light Assault Rifle Special Weapon Mining Laser Special Melee Weapon Datajack Build | -11 -10 -10 ------- Run | Yrd Mat Sub Slots Evolved . | . . . Power . | . . . Propulsion . | . . . Utility . | . . . Weapon . | . . . Parts Attached 39 | 7 22 10 Power 6 | 1 3 2 Engine 6 | 1 3 2 Core . | . . . Reactor . | . . . Propulsion 11 | 2 6 3 Treads 1 | . . 1 Leg 3 | . 3 . Wheel 7 | 2 3 2 Hover . | . . . Flight . | . . . Utility 10 | 2 6 2 Device 7 | 1 6 . Storage 1 | 1 . . Processor 1 | . . 1 Hackware . | . . . Protection 1 | . . 1 Artifact . | . . . Weapon 12 | 2 7 3 Energy Gun 7 | 1 4 2 Energy Cannon 1 | . 1 . Ballistic Gun 2 | 1 . 1 Ballistic Cannon . | . . . Launcher . | . . . Special Weapon 1 | . 1 . Impact Weapon . | . . . Slashing Weapon . | . . . Piercing Weapon . | . . . Special Melee Weapon 1 | . 1 . Unidentified Prototypes . | . . . Parts Lost 7 | . 5 2 Power . | . . . Propulsion 2 | . 2 . Utility 3 | . 2 1 Weapon 2 | . 1 1 Highest Loss Streak 2 | . 2 1 To Critical Strikes . | . . . Average Slot Usage (%) 91 | . 94 86 Engine 13 | . 13 14 Leg 3 | . 6 . Wheel 22 | . 20 26 Device 17 | . 23 7 Protection 2 | . . 6 Energy Gun 14 | . 15 12 Energy Cannon 8 | . 6 12 Ballistic Gun 3 | . 4 . Special Weapon 1 | . . 1 Peak Build Rating 16 | 7 9 16 Average Rating 8 | 4 6 13 On Entrance 5 | . 7 9 Naked Turns . | . . . Heaviest Build 31 | 7 12 31 Greatest Support 40 | 20 26 40 Greatest Overweight (x) 1 | . . 1 Average Overweight (x) . | . . . Largest Inventory Capacity 5 | 5 5 5 Average Capacity 5 | 5 5 5 Most Carried 5 | 2 5 5 Average Carried 3 | . 3 4 Final Capacity 5 | 5 5 5 Final Carried 5 | 1 4 5 Class Distribution -------------------- 56% | Mutant 26% | Scavenger-Mutant 16% | Subdweller-Mutant Dominant Class ---------------- Mutant | -10/Materials Subdweller-Mutant | -10/Subcaves Resources | -11 -10 -10 ----------- Run | Yrd Mat Sub Matter Collected 650 | 315 226 109 Remotely . | . . . Salvage Created 742 | 61 528 153 Parts 56 | 5 37 14 Haulers Intercepted . | . . . Recyclers Shooed 2 | . 2 . Parts Field Recycled . | . . . Retrieved Matter . | . . . Parts Self-Destructed 9 | . . 9 Prevented . | . . . Kills | -11 -10 -10 ------- Run | Yrd Mat Sub Combat Hostiles Destroyed 17 | 1 10 6 Guns 9 | 1 5 3 Cannons 8 | . 5 3 Classes Destroyed 8 | 2 5 1 Worker 1 | 1 . . Builder 2 | . 2 . Tunneler 2 | . 2 . Recycler 1 | . 1 . Watcher 2 | . 2 . Swarmer 8 | . 5 3 Grunt 6 | 1 5 . Subdweller 3 | . . 3 Best Kill Streak 6 | 1 6 2 Combat Bots Only 5 | 1 5 2 Max Kills in Single Turn 1 | 1 1 1 Gunslinging . | . . . Exploded . | . . . Melee . | . . . Uniques/NPCs Destroyed . | . . . Combat | -11 -10 -10 -------- Run | Yrd Mat Sub Hostile Shots Fired 147 | 8 72 67 Missed 42 | 2 20 20 Damage Taken 1094 | 67 515 512 Core 253 | 12 164 77 Absorbed by Shields . | . . . Regen/Repaired (Parts) 31 | . 31 . Core Remaining (%) 95 | 95 . . Volleys Fired 101 | 11 60 30 Largest 2 | 2 2 2 Hottest 160 | 60 160 135 Shots Fired 168 | 22 108 38 Gun 104 | 22 64 18 Cannon 58 | . 38 20 Launcher . | . . . Special 6 | . 6 . Kinetic 28 | 11 15 2 Thermal 113 | 11 66 36 Explosive . | . . . Electromagnetic 27 | . 27 . Robot Hit Streak 11 | 3 5 11 Robot Miss Streak 7 | 2 7 6 Penetration Max . | . . . Secondary Targets . | . . . Shots Hit Robots 74 | 11 43 20 Core Hits 38 | 4 26 8 Critical Kills . | . . . Critical Parts Destroyed . | . . . Critical Strikes 3 | . 1 2 Burn 3 | . 1 2 Melee Attacks 2 | . 2 . Impact . | . . . Slashing . | . . . Piercing . | . . . Sneak Attacks 1 | . 1 . Combat Hostiles 1 | . 1 . Follow-up Attacks . | . . . Damage Inflicted 1108 | 112 641 355 Guns 600 | 112 343 145 Cannons 508 | . 298 210 Explosions . | . . . Melee . | . . . Ramming . | . . . Kinetic 145 | 50 77 18 Thermal 809 | 62 410 337 Explosive . | . . . Electromagnetic 154 | . 154 . Impact . | . . . Slashing . | . . . Piercing . | . . . Highest Corruption 1 | . 1 1 Average Corruption 1 | . 1 1 Corruption Purged . | . . . Corruption Blocked . | . . . Effects 13 | . 6 7 Message Errors 5 | . 2 3 Matter Fused 2 | . 1 1 Heat Flow Errors 2 | . . 2 Parts Fused 1 | . 1 . Data Loss (minor) 3 | . 2 1 Overload Shots . | . . . Overflow Damage 14 | . 14 . Projectiles . | . . . Explosions 14 | . 14 . Melee . | . . . Knockbacks . | . . . Impact . | . . . Kinetic . | . . . Secondary . | . . . Self-Inflicted Damage 38 | . 38 . Shots 1 | . 1 . Rammed . | . . . Targets Rammed . | . . . Kicked . | . . . Crushed . | . . . Highest Temperature 240 | 64 240 166 Average Temperature 53 | 31 56 56 Received Heat Transfer 174 | 36 132 6 Siege Activations . | . . . Robots Corrupted . | . . . Combat Hostiles . | . . . Parts Fried 1 | . 1 . Impact Corruptions . | . . . Robots Melted . | . . . Combat Hostiles . | . . . Parts Melted 4 | . 2 2 Heat Transferred 2000 | 150 1036 814 Parts Sabotaged . | . . . Parts Stolen . | . . . Parts Stripped . | . . . Power Chain Reactions 1 | . 1 . Alert | -11 -10 -10 ------- Run | Yrd Mat Sub Peak Influence 149 | 25 149 . Initial 16 | . 16 . Average 65 | 4 72 . Maximum Alert Level . | . . . Low Security (%) 100 | 100 100 . Level 1 . | . . . Level 2 . | . . . Level 3 . | . . . Level 4 . | . . . Level 5 . | . . . High Security . | . . . Max Security . | . . . Squads Dispatched 3 | . 3 . Investigation 2 | . 2 . Extermination . | . . . Reinforcement 1 | . 1 . Assault . | . . . Garrison . | . . . Intercept . | . . . Searches Triggered . | . . . Construction Impeded . | . . . Haulers Reinforced . | . . . Active Scanning Responses . | . . . Cargo Convoy Interrupts . | . . . Stealth | -11 -10 -10 --------- Run | Yrd Mat Sub Distress Signals 2 | . 2 . Communications Jammed . | . . . Distress Signals . | . . . Times Spotted 40 | 1 22 17 Peak Tracking Total 5 | 1 4 5 Tactical Retreats 4 | . 2 2 Traps | -11 -10 -10 ------- Run | Yrd Mat Sub Traps Triggered 3 | . 1 2 Indirectly . | . . . Trap Hack Attempts . | . . . Triggered . | . . . Disarmed . | . . . Reprogrammed . | . . . Reused . | . . . Traps Extracted . | . . . Installed . | . . . Triggered . | . . . Machines | -11 -10 -10 ---------- Run | Yrd Mat Sub Machines Disabled . | . . . Max in Single Turn . | . . . Machines Repaired . | . . . Machines Dismantled . | . . . Machines Sabotaged . | . . . Overloaded Fab Kills . | . . . Hacking | -11 -10 -10 --------- Run | Yrd Mat Sub Machines Accessed 10 | . 9 1 Terminals 6 | . 6 . Fabricators . | . . . Repair Stations 1 | . 1 . Recycling Units 2 | . 2 . Scanalyzers . | . . . Garrison Access . | . . . Total Hacks 37 | . 32 5 Successful 27 | . 22 5 Failed 10 | . 10 . Catastrophic 2 | . 2 . Database Lockouts . | . . . Manual . | . . . Terminals 23 | . 23 . Fabricators . | . . . Repair Stations 3 | . 3 . Recycling Units 6 | . 6 . Scanalyzers . | . . . Garrison Access . | . . . Terminal Hacks 21 | . 16 5 Record 14 | . 9 5 Prototype ID Bank 1 | . 1 . Alert Level 1 | . 1 . Locate Traps 3 | . 3 . Dispatch Records 1 | . 1 . Zone Layout 1 | . 1 . Fabricator Hacks . | . . . Repair Station Hacks 2 | . 2 . Scan Component 1 | . 1 . Repair 1 | . 1 . Recycling Unit Hacks 4 | . 4 . Recycle Component 1 | . 1 . Report Inventory 2 | . 2 . Retrieve Components 1 | . 1 . Scanalyzer . | . . . Garrison Access Hacks . | . . . Unauthorized Hacks . | . . . Terminals . | . . . Fabricators . | . . . Repair Stations . | . . . Recycling Units . | . . . Scanalyzers . | . . . Garrison Access . | . . . Data Cores Recovered . | . . . Used . | . . . Hacking Detections 7 | . 7 . Full Trace Events 4 | . 4 . Feedback Events 1 | . 1 . Corruption 1 | . 1 . Feedback Blocked . | . . . Robot Schematics Acquired . | . . . Robots Built . | . . . Authchips . | . . . Time . | . . . Total Robot Build Rating . | . . . Part Schematics Acquired . | . . . Parts Built . | . . . Authchips . | . . . Time . | . . . Total Part Build Rating . | . . . Parts Repaired 1 | . 1 . Time 13 | . 13 . Parts Recycled 1 | . 1 . Recycled Matter . | . . . Retrieved Matter . | . . . Retrieved Components 9 | . 9 . Parts Scanalyzed . | . . . Part Schematics Acquired . | . . . Parts Damaged . | . . . Bothacking | -11 -10 -10 ------------ Run | Yrd Mat Sub Used RIF Installer . | . . . Robots Hacked . | . . . Non-combat . | . . . Combat . | . . . Robot Hacks Applied . | . . . Relay Couplers Released . | . . . Fabnet Peak Effective % . | . . . Robots Rewired . | . . . Allies Hacked . | . . . Hacks Repelled . | . . . Allies | -11 -10 -10 -------- Run | Yrd Mat Sub Total Allies . | . . . Largest Group . | . . . Highest-Rated Group . | . . . Highest-Rated Ally . | . . . Total Orders . | . . . Ally Attacks . | . . . Total Damage . | . . . Kills . | . . . Allies Corrupted . | . . . Allies Melted . | . . . Intel | -11 -10 -10 ------- Run | Yrd Mat Sub Robot Analysis Total . | . . . Derelict Logs Recovered . | . . . Drone Launches . | . . . Drone Recoveries . | . . . Exploration | -11 -10 -10 ------------- Run | Yrd Mat Sub Turns Passed 1904 | 125 1136 643 Spaces Moved 1618 | 104 995 519 Core 16 | 16 . . Treads 1 | . . 1 Legs 196 | . 196 . Wheels 1405 | 88 799 518 Hover . | . . . Flight . | . . . Fastest Speed 50 | 50 80 90 Average Speed 94 | 75 90 105 Slowest Speed 260 | 80 120 260 Overloaded Moves . | . . . Propulsion Burnouts . | . . . Robots Hopped . | . . . Cave-ins Triggered . | . . . Exploration Rate (%) 35 | 6 81 19 Regions Visited 2 Branch Regions 1 Pre-discovered Areas . | . . . Known Exits Taken . | . . . Unknown Exits Taken 2 | 1 1 . Scrap Searched . | . . . Spaces Dug . | . . . Terrain Destroyed 11 | . 4 7 Melee . | . . . Projectile 9 | . 2 7 AOE 2 | . 2 . Terrain Rammed . | . . . Walls Destroyed . | . . . Machines Disabled . | . . . Actions | -11 -10 -10 --------- Run | Yrd Mat Sub Total 1816 | 130 1112 574 Wait 1 | 1 . . Move 1616 | 103 994 519 Hop . | . . . Pick Up 37 | 8 22 7 Fast Attach 2 | . . 2 Attach 17 | 7 7 3 Detach 1 | . . 1 Swap 20 | . 15 5 Drop 19 | . 12 7 Fire 101 | 11 60 30 Melee 2 | . 2 . Ram . | . . . Kick . | . . . Crush . | . . . Escape Stasis . | . . . Rewire . | . . . Trap . | . . . Miscellaneous . | . . . Route ------- -11/Scrapyard -10/Materials (discovered 4 exits: [*Mat x3] / *Sub) -10/Subcaves (discovered 3 exits: [*Mat x2] / *Rec) History --------- Turn | Location | Event 2 | -11/Scrapyard | Met Revision 17 93 | -11/Scrapyard | Discovered new exit (range 8) 126 | -11/Scrapyard | Entered Materials 258 | -10/Materials | Discovered new exit (range 4) 300 | -10/Materials | Build established: Mutant 377 | -10/Materials | Repaired Lgt. Ion Engine 471 | -10/Materials | Discovered new exit (range 16) 796 | -10/Materials | Core integrity fell below 50% 869 | -10/Materials | Discovered new exit (range 16) 1112 | -10/Materials | Discovered new exit (range 11) 1262 | -10/Materials | Entered Subcaves 1269 | -10/Subcaves | Build established: Scavenger-Mutant 1277 | -10/Subcaves | Discovered new exit (range 16) 1284 | -10/Subcaves | Core integrity fell below 20% 1352 | -10/Subcaves | Ambushed by swarm of Subdwellers 1357 | -10/Subcaves | Shifting Twisted Machinery released Sub. Monowheel 1361 | -10/Subcaves | Shifting Twisted Machinery released Piercing Trap 1593 | -10/Subcaves | Visited Clippyterm 1596 | -10/Subcaves | Identified exit to Recycling 1596 | -10/Subcaves | Learned 40 Factory zone layouts 1659 | -10/Subcaves | Discovered new exit (range 11) 1752 | -10/Subcaves | Build established: Subdweller-Mutant 1905 | -10/Subcaves | Destroyed by Autobeam Turret with Autobeam Last Messages --------------- Destroyed Flight Unit. S-10 Pest suffers critical hit (Burn). Flight Unit melted. S-10 Pest destroyed. S-10 Pest suffers critical hit (Burn). Destroyed Lgt. Ion Engine. Scrap Shield destroyed. S-10 Pest destroyed. :K&QBXK%&D> 27K/DTROOBF1HGOJ> Triggered Shrapnel Trap. An expanding cloud of shrapnel blasts out in all directions. Acquired Targeting Computer. Subatomizers dissect the Sub. Machine Gun. Dropped Broken Sub. Power Source. Acquired 20 matter. Acquired Battle Rifle. CE|TTUQ6HT:ZG0DXRJOX>R 5TFDJM Acquired Sub. Laser. Acquired 10 matter. Map ----- +----------------------------------------------------+ | ????# ###??????????????????????????????????????? | | ????# ##????????????????????????????????????????? | | ???## #????????????????????????????????????????? | | ???# #????????????????????????????????????????? | | ???## ##????????????????????????????????????????? | | ???# #????????????????????????????????????????? | | ???# #????????????????????????????????????????? | | ???# ##????????????????????????????????????????? | | ???# #####?????????????????????????????????????? | | ???# # ###???????????????????????????????????? | | ???## ##??????????????????????????????????? | | ????# ### #??????????????????????????????????? | | ????# ##?### ##?????????????????????????????????? | | ????# #????##%##????????????????????????????????? | | ????### ?????## ##???????????????????????????????? | | ???????#??????## ##??????????????????????????????? | | ?????????????## # ##?????????????????????????????? | | ????????????##% ## ##????????????????????????????? | | ???????????## ### ##???????????????????????????? | | ???????????# ##" ### ##??????????????????????????? | | ????????##?#%### # ##?????????????????????????? | | ????????# ### ### ## ##??######????????????????? | | ????????# ### ####### %##? """#????????????????? | | ????????## ##$# #????## %# "#????????????????? | | ?????????## ## ##?????## # "#????????????????? | | ??????????## "######??## @ t""#????????????????? | | ???????????## # # "#???## >#???????????????? | | ????????????## #????? % t""##???????????????? | | ????????????# ###???## "#????????????????? | | ????????????### "##???? "#????????????????? | | ????????????#### ""#####" """#????????????????? | | ????????????# " ########????????????????? | | ????????????# "" """ #??????????????????????? | | ????????????#####"""""" ???????????????????? | | ????????????????## """< "??????????????????????? | | ?????????????????## """ ???????????????????????? | | ???????????????????#""#####??????????????????????? | | ????????????????????###??????????????????????????? | | ?????????????????????????????????????????????????? | | ?????????????????????????????????????????????????? | | ?????????????????????????????????????????????????? | | ?????????????????????????????????????????????????? | | ?????????????????????????????????????????????????? | | ?????????????????????????????????????????????????? | | ?????????????????????????????????????????????????? | | ?????????????????????????????????????????????????? | | ?????????????????????????????????????????????????? | | ?????????????????????????????????????????????????? | | ?????????????????????????????????????????????????? | | ?????????????????????????????????????????????????? | +----------------------------------------------------+ Best States ------------- Heat Dissipation 35 Energy Generation 15 Energy Capacity 250 Matter Stores 350 Matter Capacity 350 Sight Range 16 Robot Scan Range 14 Terrain Scan Range 16 Terrain Scan Density 10 Armor Coverage 800 Evasion (%) 55 Targeting Accuracy 5 Recoil Reduction 1 Item Schematics ----------------- None Robot Schematics ------------------ None Fabricated ------------ Nothing Alien Tech Used ----------------- None Achievements -------------- None Challenges ------------ None Game ------ Seed HardenedReflectivePower Manual? 0 Play Time 00:55:34 Cumulative 2.0 hours Start 2024.08.13 @ 17:20:19 End 2024.08.13 @ 18:22:37 Sessions 1 Manual Loads 0 Difficulty Rogue Special Mode None Game No. 3 Rogue 3 Adventurer 0 Explorer 0 Win Type - Total 0 Types 0/0/0/0/0/0/0/0/0 Lore% 1 Gallery% 6 Achievement% 7 Wizard Run 0 Options --------- Layout 1 ASCII 0 Keyboard 0 Movement Mouse Keybinds 0 Fullscreen 1 Font 32/SmallcapsGlow Map View 50x35 Zoom Use 0% Tactical HUD 0 Map Filters NONE Filters NONE Steam 1 RUN: d1627ec6-faf9-4774-99d8-f0c1fa32928f